[Event "16th Baltic Pearl Open"]
[Site "Lazy"]
[Date "2020.07.01"]
[Round "4.4"]
[White "Luch, Michal"]
[Black "Klepek, Witold"]
[Result "1/2-1/2"]
[ECO "A36"]
[WhiteElo "2409"]
[BlackElo "2171"]
[Annotator "ChessBase"]
[PlyCount "90"]
[EventDate "2020.06.28"]
[EventType "swiss"]
[EventCountry "POL"]
[SourceTitle "playchess.com"]
[Source "ChessBase"]
[SourceQuality "1"]
[TimeControl "5400+30"]

1. c4 {[%emt 0:00:00]} c5 {[%emt 0:00:29]} 2. Nc3 {[%emt 0:00:00]} Nc6 {[%emt 0:00:23]} 3. g3 {[%emt 0:00:03]} g6 {[%emt 0:01:09]} 4. Bg2 {[%emt 0:00:03]} Bg7 {[%emt 0:00:19]} 5. a3 {[%emt 0:00:10]} e6 {[%emt 0:06:01]} 6. Rb1 {[%emt 0:00:06]} Nf6 {[%emt 0:03:15]} 7. b4 {[%emt 0:00:58]} cxb4 {[%emt 0:00:33]} 8. axb4 {[%emt 0:00:02]} d5 {[%emt 0:00:30]} 9. cxd5 {[%emt 0:10:32]} Nxd5 {[%emt 0:05:37]} 10. Nxd5 {[%emt 0:00:19]} exd5 {[%emt 0:00:06]} 11. b5 {[%emt 0:09:29]} Ne5 {[%emt 0:09:46]} 12. Nf3 {[%emt 0:08:38]} Nxf3+ {[%emt 0:07:20]} 13. Bxf3 {[%emt 0:00:02]} O-O {[%emt 0:00:17]} 14. O-O {[%emt 0:06:49]} Bh3 {[%emt 0:02:32]} 15. Re1 {[%emt 0:00:19]} Qd7 {[%emt 0:00:28]} 16. Qb3 {[%emt 0:20:31]} Rfd8 {[%emt 0:07:40]} 17. d3 {[%emt 0:04:07]} Bg4 {[%emt 0:01:49]} 18. Bg5 {[%emt 0:00:38]} Re8 {[%emt 0:00:39]} 19. Bxg4 {[%emt 0:16:42]} Qxg4 {[%emt 0:00:13]} 20. Qxd5 {[%emt 0:00:12]} Rxe2 {[%emt 0:00:48]} 21. Rxe2 {[%emt 0:10:38]} Qxe2 {[%emt 0:00:19]} 22. Rc1 {[%emt 0:01:02]} h6 {[%emt 0:23:51]} 23. Be3 {[%emt 0:06:52]} g5 {[%emt 0:04:23]} 24. Rc7 {[%emt 0:00:55]} Qh5 {[%emt 0:00:05]} 25. Qxb7 {[%emt 0:02:16]} Rd8 {[%emt 0:01:37]} 26. Rc8 {[%emt 0:00:41]} Qd1+ {[%emt 0:00:06]} 27. Kg2 {[%emt 0:00:02]} Qxd3 {[%emt 0:00:08]} 28. Rxd8+ {[%emt 0:00:04]} Qxd8 {[%emt 0:00:02]} 29. Bxa7 {[%emt 0:00:19]} Qd3 {[%emt 0:00:50]} 30. Qc6 {[%emt 0:01:06]} h5 {[%emt 0:01:44]} 31. Be3 {[%emt 0:00:38]} h4 {[%emt 0:01:38]} 32. b6 {[%emt 0:00:32]} h3+ {[%emt 0:01:19]} 33. Kxh3 {[%emt 0:00:20]} Qf1+ {[%emt 0:00:03]} 34. Kg4 {[%emt 0:00:09]} Qe2+ {[%emt 0:00:43]} 35. Kxg5 {[%emt 0:00:20]} Qd3 {[%emt 0:05:56]} 36. Qc8+ {[%emt 0:01:05]} Bf8 {[%emt 0:00:03]} 37. Qf5 {[%emt 0:01:09]} Be7+ {[%emt 0:00:45]} 38. Kg4 {[%emt 0:00:01]} Qe2+ {[%emt 0:00:28]} 39. Kh3 {[%emt 0:00:35]} Qf1+ {[%emt 0:00:08]} 40. Kg4 {[%emt 0:00:05]} Qe2+ {[%emt 0:00:03]} 41. f3 {[%emt 0:01:22]} Qxe3 {[%emt 0:00:51]} 42. b7 {[%emt 0:00:16]} Qd4+ {[%emt 0:01:17]} 43. Kh3 {[%emt 0:00:45]} Qh8+ {[%emt 0:00:10]} 44. Kg4 {[%emt 0:00:22]} Qd4+ {[%emt 0:00:05]} 45. Kh3 {[%emt 0:00:39]} Qh8+ {[%emt 0:00:06]} 1/2-1/2

[Event "16th Baltic Pearl Open"]
[Site "Lazy"]
[Date "2020.07.02"]
[Round "5.1"]
[White "Kosakowski, Jakub"]
[Black "Klimkowski, Jan"]
[Result "1/2-1/2"]
[ECO "B23"]
[WhiteElo "2416"]
[BlackElo "2193"]
[Annotator "ChessBase"]
[PlyCount "106"]
[EventDate "2020.06.28"]
[EventType "swiss"]
[EventCountry "POL"]
[SourceTitle "playchess.com"]
[Source "ChessBase"]
[SourceQuality "1"]
[TimeControl "5400+30"]

1. e4 {[%emt 0:00:00]} c5 {[%emt 0:00:00]} 2. Nc3 {[%emt 0:00:00]} Nc6 {[%emt 0:00:00]} 3. Nge2 {[%emt 0:00:36]} e5 {[%emt 0:00:52]} 4. Nd5 {[%emt 0:00:08]} d6 {[%emt 0:02:19]} 5. Nec3 {[%emt 0:00:35]} Nf6 {[%emt 0:01:22]} 6. Nxf6+ {[%emt 0:01:26]} Qxf6 {[%emt 0:01:07]} 7. Nd5 {[%emt 0:00:43]} Qd8 {[%emt 0:00:06]} 8. c3 {[%emt 0:00:08]} Be7 {[%emt 0:01:22]} 9. Bc4 {[%emt 0:00:10]} O-O {[%emt 0:00:45]} 10. O-O {[%emt 0:00:08]} Be6 {[%emt 0:01:38]} 11. f4 {[%emt 0:02:12]} exf4 {[%emt 0:02:24]} 12. d4 {[%emt 0:11:51]} cxd4 {[%emt 0:03:20]} 13. cxd4 {[%emt 0:00:20]} Bxd5 {[%emt 0:01:26]} 14. exd5 {[%emt 0:01:42]} Nb4 {[%emt 0:01:20]} 15. a3 {[%emt 0:04:28]} Rc8 {[%emt 0:04:07]} 16. Bb3 {[%emt 0:00:12]} Na6 {[%emt 0:00:08]} 17. Bxf4 {[%emt 0:00:08]} Qb6 {[%emt 0:01:28]} 18. Qd3 {[%emt 0:00:33]} Rfe8 {[%emt 0:07:07]} 19. Ba4 {[%emt 0:10:07]} Rf8 {[%emt 0:03:51]} 20. Rf2 {[%emt 0:03:49]} Nc7 {[%emt 0:03:24]} 21. Qe4 {[%emt 0:02:49]} Bh4 {[%emt 0:04:41]} 22. Rc2 {[%emt 0:02:20]} Bf6 {[%emt 0:11:37]} 23. Rac1 {[%emt 0:04:49]} Rfd8 {[%emt 0:00:31]} 24. Rc4 {[%emt 0:09:56]} Qa6 {[%emt 0:07:17]} 25. Bd1 {[%emt 0:03:13]} Re8 {[%emt 0:05:33]} 26. Rxc7 {[%emt 0:09:03]} Rcd8 {[%emt 0:02:11]} 27. Be5 {[%emt 0:10:26]} dxe5 {[%emt 0:00:52]} 28. Be2 {[%emt 0:00:29]} Qb6 {[%emt 0:01:10]} 29. Bd3 {[%emt 0:01:43]} g6 {[%emt 0:01:20]} 30. d6 {[%emt 0:08:00]} Qxd6 {[%emt 0:02:46]} 31. Rxb7 {[%emt 0:01:58]} exd4 {[%emt 0:01:27]} 32. Qf3 {[%emt 0:04:44]} Re3 {[%emt 0:02:21]} 33. Qf1 {[%emt 0:00:01]} Re7 {[%emt 0:02:55]} 34. Rxe7 {[%emt 0:03:15]} Qxe7 {[%emt 0:00:11]} 35. Re1 {[%emt 0:00:22]} Qd6 {[%emt 0:00:08]} 36. Qf3 {[%emt 0:00:07]} Kg7 {[%emt 0:00:54]} 37. g3 {[%emt 0:00:37]} Bg5 {[%emt 0:01:07]} 38. Kg2 {[%emt 0:00:10]} Be3 {[%emt 0:00:36]} 39. Rf1 {[%emt 0:00:20]} Rd7 {[%emt 0:01:12]} 40. h4 {[%emt 0:01:35]} f5 {[%emt 0:02:43]} 41. h5 {[%emt 0:00:41]} Qb6 {[%emt 0:01:54]} 42. hxg6 {[%emt 0:02:28]} hxg6 {[%emt 0:01:00]} 43. b4 {[%emt 0:01:18]} Qb7 {[%emt 0:01:20]} 44. Rb1 {[%emt 0:01:35]} Qxf3+ {[%emt 0:01:42]} 45. Kxf3 {[%emt 0:00:01]} Re7 {[%emt 0:00:20]} 46. Rd1 {[%emt 0:01:11]} Rc7 {[%emt 0:00:11]} 47. g4 {[%emt 0:00:12]} fxg4+ {[%emt 0:01:00]} 48. Kxg4 {[%emt 0:00:01]} Rc3 {[%emt 0:00:22]} 49. a4 {[%emt 0:00:01]} Rb3 {[%emt 0:00:10]} 50. b5 {[%emt 0:00:41]} Ra3 {[%emt 0:00:08]} 51. Bc2 {[%emt 0:01:07]} Ra2 {[%emt 0:00:56]} 52. Bb3 {[%emt 0:00:09]} Rb2 {[%emt 0:01:41]} 53. Rd3 {[%emt 0:00:09]} Rd2 {[%emt 0:01:59]} 1/2-1/2

[Event "16th Baltic Pearl Open"]
[Site "Lazy"]
[Date "2020.07.02"]
[Round "5.4"]
[White "Chylewski, Patryk"]
[Black "Derylo, Kamil"]
[Result "1/2-1/2"]
[ECO "A06"]
[WhiteElo "2344"]
[BlackElo "2084"]
[Annotator "ChessBase"]
[PlyCount "32"]
[EventDate "2020.06.28"]
[EventType "swiss"]
[EventCountry "POL"]
[SourceTitle "playchess.com"]
[Source "ChessBase"]
[SourceQuality "1"]
[TimeControl "5400+30"]

1. Nf3 {[%emt 1:30:30]} d5 {[%emt 1:30:30]} 2. b3 {[%emt 0:00:30]} Bg4 {[%emt 0:00:30]} 3. Bb2 {[%emt 0:00:30]} Nd7 {[%emt 0:00:30]} 4. d4 {[%emt 0:00:30]} Ngf6 {[%emt 0:00:30]} 5. Nbd2 {[%emt 0:00:30]} e6 {[%emt 0:00:30]} 6. e3 {[%emt 0:00:30]} Ne4 {[%emt 0:00:30]} 7. h3 {[%emt 0:00:30]} Bh5 {[%emt 0:00:30]} 8. a3 {[%emt 0:00:30]} Bd6 {[%emt 0:00:30]} 9. Be2 {[%emt 0:00:30]} f5 {[%emt 0:00:30]} 10. g4 {[%emt 0:00:30]} Bg6 {[%emt 0:00:30]} 11. Bd3 {[%emt 0:00:30]} O-O {[%emt 0:00:30]} 12. Qe2 {[%emt 0:00:30]} Qe7 {[%emt 0:00:30]} 13. Ne5 {[%emt 0:00:30]} Bxe5 {[%emt 0:00:30]} 14. dxe5 {[%emt 0:00:30]} f4 {[%emt 0:00:30]} 15. Bxe4 {[%emt 0:00:30]} dxe4 {[%emt 0:00:30]} 16. O-O-O {[%emt 0:00:30]} f3 {[%emt 0:00:30]} 1/2-1/2

[Event "16th Baltic Pearl Open"]
[Site "Lazy"]
[Date "2020.07.03"]
[Round "6.1"]
[White "Kubicka, Anna"]
[Black "Kosakowski, Jakub"]
[Result "0-1"]
[ECO "E72"]
[WhiteElo "2256"]
[BlackElo "2416"]
[Annotator "ChessBase"]
[PlyCount "108"]
[EventDate "2020.06.28"]
[EventType "swiss"]
[EventCountry "POL"]
[SourceTitle "playchess.com"]
[Source "ChessBase"]
[SourceQuality "1"]
[TimeControl "5400+30"]

1. Nf3 {[%emt 0:00:00]} Nf6 {[%emt 0:00:00]} 2. c4 {[%emt 0:00:00]} g6 {[%emt 0:00:02]} 3. Nc3 {[%emt 0:00:00]} Bg7 {[%emt 0:00:08]} 4. e4 {[%emt 0:00:00]} d6 {[%emt 0:00:04]} 5. d4 {[%emt 0:00:00]} O-O {[%emt 0:00:07]} 6. g3 {[%emt 0:00:08]} e5 {[%emt 0:03:54]} 7. Bg2 {[%emt 0:00:12]} Nc6 {[%emt 0:00:20]} 8. d5 {[%emt 0:01:42]} Nd4 {[%emt 0:00:21]} 9. h3 {[%emt 0:02:24]} c5 {[%emt 0:00:15]} 10. dxc6 {[%emt 0:01:33]} bxc6 {[%emt 0:00:31]} 11. O-O {[%emt 0:04:15]} c5 {[%emt 0:13:00]} 12. Be3 {[%emt 0:04:11]} Rb8 {[%emt 0:03:51]} 13. b3 {[%emt 0:01:53]} Ne8 {[%emt 0:00:15]} 14. Rc1 {[%emt 0:16:31]} Nc7 {[%emt 0:01:55]} 15. Nd2 {[%emt 0:03:11]} f5 {[%emt 0:01:18]} 16. f4 {[%emt 0:04:18]} Nce6 {[%emt 0:00:37]} 17. Nd5 {[%emt 0:05:46]} Bd7 {[%emt 0:01:07]} 18. Kh2 {[%emt 0:07:49]} Kh8 {[%emt 0:02:24]} 19. fxe5 {[%emt 0:10:20]} dxe5 {[%emt 0:08:44]} 20. exf5 {[%emt 0:02:09]} gxf5 {[%emt 0:00:35]} 21. Nf3 {[%emt 0:01:54]} e4 {[%emt 0:07:46]} 22. Nh4 {[%emt 0:02:06]} Be5 {[%emt 0:01:08]} 23. Nf4 {[%emt 0:01:06]} Rg8 {[%emt 0:03:49]} 24. Qh5 {[%emt 0:14:50]} Nxf4 {[%emt 0:00:16]} 25. Bxf4 {[%emt 0:01:39]} Bxf4 {[%emt 0:03:32]} 26. Rxf4 {[%emt 0:00:04]} Be8 {[%emt 0:00:31]} 27. Qd1 {[%emt 0:00:36]} Qg5 {[%emt 0:00:10]} 28. Rc3 {[%emt 0:01:03]} Bh5 {[%emt 0:00:42]} 29. Qe1 {[%emt 0:00:20]} Rbf8 {[%emt 0:00:33]} 30. Re3 {[%emt 0:06:54]} Ne2 {[%emt 0:04:07]} 31. Rxe2 {[%emt 0:01:18]} Bxe2 {[%emt 0:00:07]} 32. Qc3+ {[%emt 0:00:09]} Qg7 {[%emt 0:05:02]} 33. Qxg7+ {[%emt 0:00:05]} Rxg7 {[%emt 0:00:05]} 34. Bxe4 {[%emt 0:02:24]} Rd7 {[%emt 0:00:23]} 35. Bd5 {[%emt 0:00:57]} Bd3 {[%emt 0:00:08]} 36. g4 {[%emt 0:00:08]} Kg7 {[%emt 0:00:50]} 37. Nxf5+ {[%emt 0:04:39]} Bxf5 {[%emt 0:00:06]} 38. gxf5 {[%emt 0:00:03]} Kf6 {[%emt 0:00:32]} 39. Rf2 {[%emt 0:00:28]} Re7 {[%emt 0:00:14]} 40. Be6 {[%emt 0:01:36]} Rd8 {[%emt 0:00:04]} 41. Rg2 {[%emt 0:00:16]} Rg7 {[%emt 0:00:14]} 42. Re2 {[%emt 0:01:20]} Rd3 {[%emt 0:00:11]} 43. Bd5 {[%emt 0:00:14]} Rgg3 {[%emt 0:00:52]} 44. Re8 {[%emt 0:00:54]} Rxh3+ {[%emt 0:01:10]} 45. Kg2 {[%emt 0:00:01]} Rhe3 {[%emt 0:00:15]} 46. Rf8+ {[%emt 0:00:20]} Kg5 {[%emt 0:00:09]} 47. f6 {[%emt 0:00:09]} Re2+ {[%emt 0:00:07]} 48. Kf1 {[%emt 0:00:03]} Rxa2 {[%emt 0:00:04]} 49. Ke1 {[%emt 0:00:48]} Rxb3 {[%emt 0:00:05]} 50. Be4 {[%emt 0:00:36]} Rbb2 {[%emt 0:00:06]} 51. Bf3 {[%emt 0:00:17]} Ra1+ {[%emt 0:00:22]} 52. Bd1 {[%emt 0:00:08]} Rbb1 {[%emt 0:00:05]} 53. f7 {[%emt 0:00:10]} Rxd1+ {[%emt 0:00:05]} 54. Ke2 {[%emt 0:00:01]} Kf6 {[%emt 0:00:07]} 0-1

[Event "16th Baltic Pearl Open"]
[Site "Lazy"]
[Date "2020.07.04"]
[Round "7.3"]
[White "Mis, Mieszko"]
[Black "Kokoszczynski, Jan"]
[Result "1-0"]
[ECO "D37"]
[WhiteElo "2332"]
[BlackElo "2312"]
[Annotator "ChessBase"]
[PlyCount "45"]
[EventDate "2020.06.28"]
[EventType "swiss"]
[EventCountry "POL"]
[SourceTitle "playchess.com"]
[Source "ChessBase"]
[SourceQuality "1"]
[TimeControl "5400+30"]

1. d4 {[%emt 1:30:30]} Nf6 {[%emt 1:30:30]} 2. c4 {[%emt 0:00:30]} e6 {[%emt 0:00:30]} 3. Nf3 {[%emt 0:00:30]} d5 {[%emt 0:00:30]} 4. Nc3 {[%emt 0:00:30]} Be7 {[%emt 0:00:30]} 5. Bf4 {[%emt 0:00:30]} O-O {[%emt 0:00:30]} 6. Rc1 {[%emt 0:00:30]} c5 {[%emt 0:00:30]} 7. e3 {[%emt 0:00:30]} Nc6 {[%emt 0:00:30]} 8. cxd5 {[%emt 0:00:30]} exd5 {[%emt 0:00:30]} 9. Be2 {[%emt 0:00:30]} c4 {[%emt 0:00:30]} 10. Ne5 {[%emt 0:00:30]} h6 {[%emt 0:00:30]} 11. g4 {[%emt 0:00:30]} Be6 {[%emt 0:00:30]} 12. Bf3 {[%emt 0:00:30]} Rc8 {[%emt 0:00:30]} 13. h4 {[%emt 0:00:30]} Nd7 {[%emt 0:00:30]} 14. Nxd7 {[%emt 0:00:30]} Qxd7 {[%emt 0:00:30]} 15. g5 {[%emt 0:00:30]} Nb4 {[%emt 0:00:30]} 16. Be2 {[%emt 0:00:30]} Bd6 {[%emt 0:00:30]} 17. Bxd6 {[%emt 0:00:30]} Qxd6 {[%emt 0:00:30]} 18. a3 {[%emt 0:00:30]} Nc6 {[%emt 0:00:30]} 19. gxh6 {[%emt 0:00:30]} gxh6 {[%emt 0:00:30]} 20. Bxc4 {[%emt 0:00:30]} dxc4 {[%emt 0:00:30]} 21. Qh5 {[%emt 0:00:30]} Bd7 {[%emt 0:00:30]} 22. Rg1+ {[%emt 0:00:30]} Kh7 {[%emt 0:00:30]} 23. Ne4 {[%emt 0:00:30]} 1-0

[Event "16th Baltic Pearl Open"]
[Site "Lazy"]
[Date "2020.07.05"]
[Round "8.1"]
[White "Kosakowski, Jakub"]
[Black "Mis, Mieszko"]
[Result "1/2-1/2"]
[ECO "C41"]
[WhiteElo "2416"]
[BlackElo "2332"]
[Annotator "ChessBase"]
[PlyCount "52"]
[EventDate "2020.06.28"]
[EventType "swiss"]
[EventCountry "POL"]
[SourceTitle "playchess.com"]
[Source "ChessBase"]
[SourceQuality "1"]
[TimeControl "5400+30"]

1. e4 {[%emt 0:00:00]} d6 {[%emt 0:00:00]} 2. d4 {[%emt 0:00:02]} Nf6 {[%emt 0:00:00]} 3. Nc3 {[%emt 0:00:08]} e5 {[%emt 0:00:00]} 4. Nf3 {[%emt 0:00:34]} Nbd7 {[%emt 0:00:27]} 5. Bc4 {[%emt 0:01:35]} Be7 {[%emt 0:00:00]} 6. a4 {[%emt 0:00:09]} O-O {[%emt 0:00:14]} 7. O-O {[%emt 0:00:09]} a5 {[%emt 0:01:18]} 8. Re1 {[%emt 0:01:20]} c6 {[%emt 0:00:10]} 9. Ba2 {[%emt 0:00:40]} h6 {[%emt 0:00:05]} 10. h3 {[%emt 0:00:17]} Re8 {[%emt 0:00:43]} 11. Be3 {[%emt 0:03:30]} exd4 {[%emt 0:00:22]} 12. Bxd4 {[%emt 0:04:26]} Nf8 {[%emt 0:05:32]} 13. Qd3 {[%emt 0:06:40]} Be6 {[%emt 0:10:32]} 14. Bxe6 {[%emt 0:10:15]} Nxe6 {[%emt 0:00:13]} 15. Rad1 {[%emt 0:00:12]} Bf8 {[%emt 0:08:43]} 16. Qc4 {[%emt 0:06:19]} Nd7 {[%emt 0:04:34]} 17. Be3 {[%emt 0:01:05]} Qf6 {[%emt 0:03:41]} 18. Nh2 {[%emt 0:03:48]} Nec5 {[%emt 0:03:50]} 19. b3 {[%emt 0:19:38]} Qg6 {[%emt 0:05:42]} 20. Bxc5 {[%emt 0:06:23]} Nxc5 {[%emt 0:00:25]} 21. Re2 {[%emt 0:00:09]} Rad8 {[%emt 0:16:02]} 22. Nf1 {[%emt 0:03:48]} Qf6 {[%emt 0:02:05]} 23. Ne3 {[%emt 0:05:13]} g6 {[%emt 0:06:55]} 24. f4 {[%emt 0:03:00]} Bg7 {[%emt 0:06:16]} 25. e5 {[%emt 0:01:59]} Qe6 {[%emt 0:06:33]} 26. Red2 {[%emt 0:02:28]} Bf8 {[%emt 0:03:27]} 1/2-1/2

[Event "16th Baltic Pearl Open"]
[Site "Lazy"]
[Date "2020.07.05"]
[Round "8.3"]
[White "Kubicka, Anna"]
[Black "Czernek, Tymon"]
[Result "0-1"]
[ECO "B31"]
[WhiteElo "2256"]
[BlackElo "2199"]
[Annotator "ChessBase"]
[PlyCount "120"]
[EventDate "2020.06.28"]
[EventType "swiss"]
[EventCountry "POL"]
[SourceTitle "playchess.com"]
[Source "ChessBase"]
[SourceQuality "1"]
[TimeControl "5400+30"]

1. e4 {[%emt 1:30:30]} c5 {[%emt 1:30:30]} 2. Nf3 {[%emt 0:00:30]} Nc6 {[%emt 0:00:30]} 3. Bb5 {[%emt 0:00:30]} g6 {[%emt 0:00:30]} 4. Bxc6 {[%emt 0:00:30]} dxc6 {[%emt 0:00:30]} 5. O-O {[%emt 0:00:30]} Bg7 {[%emt 0:00:30]} 6. d3 {[%emt 0:00:30]} Nf6 {[%emt 0:00:30]} 7. Re1 {[%emt 0:00:30]} O-O {[%emt 0:00:30]} 8. h3 {[%emt 0:00:30]} Re8 {[%emt 0:00:30]} 9. e5 {[%emt 0:00:30]} Nd5 {[%emt 0:00:30]} 10. Nbd2 {[%emt 0:00:30]} f6 {[%emt 0:00:30]} 11. Ne4 {[%emt 0:00:30]} b6 {[%emt 0:00:30]} 12. Ng3 {[%emt 0:00:30]} fxe5 {[%emt 0:00:30]} 13. Nxe5 {[%emt 0:00:30]} Qc7 {[%emt 0:00:30]} 14. Qe2 {[%emt 0:00:30]} Rf8 {[%emt 0:00:30]} 15. Qe4 {[%emt 0:00:30]} Kh8 {[%emt 0:00:30]} 16. c4 {[%emt 0:00:30]} Nb4 {[%emt 0:00:30]} 17. Nxg6+ {[%emt 0:00:30]} hxg6 {[%emt 0:00:30]} 18. Qh4+ {[%emt 0:00:30]} Kg8 {[%emt 0:00:30]} 19. Rxe7 {[%emt 0:00:30]} Qd8 {[%emt 0:00:30]} 20. Rxg7+ {[%emt 0:00:30]} Kxg7 {[%emt 0:00:30]} 21. Qh6+ {[%emt 0:00:30]} Kf7 {[%emt 0:00:30]} 22. Qh7+ {[%emt 0:00:30]} Ke8 {[%emt 0:00:30]} 23. Bh6 {[%emt 0:00:30]} Qe7 {[%emt 0:00:30]} 24. Qxg6+ {[%emt 0:00:30]} Qf7 {[%emt 0:00:30]} 25. Qe4+ {[%emt 0:00:30]} Kd7 {[%emt 0:00:30]} 26. Bxf8 {[%emt 0:00:30]} Qxf8 {[%emt 0:00:30]} 27. Re1 {[%emt 0:00:30]} Kc7 {[%emt 0:00:30]} 28. Qe5+ {[%emt 0:00:30]} Qd6 {[%emt 0:00:30]} 29. Qg7+ {[%emt 0:00:30]} Bd7 {[%emt 0:00:30]} 30. Ne4 {[%emt 0:00:30]} Qd4 {[%emt 0:00:30]} 31. Qg3+ {[%emt 0:00:30]} Kb7 {[%emt 0:00:30]} 32. a3 {[%emt 0:00:30]} Nc2 {[%emt 0:00:30]} 33. Re2 {[%emt 0:00:30]} Qxb2 {[%emt 0:00:30]} 34. Nd6+ {[%emt 0:00:30]} Ka6 {[%emt 0:00:30]} 35. Re7 {[%emt 0:00:30]} Nd4 {[%emt 0:00:30]} 36. Kh2 {[%emt 0:00:30]} Rd8 {[%emt 0:00:30]} 37. Qf4 {[%emt 0:00:30]} Ne6 {[%emt 0:00:30]} 38. Qe3 {[%emt 0:00:30]} Qf6 {[%emt 0:00:30]} 39. Rf7 {[%emt 0:00:30]} Qd4 {[%emt 0:00:30]} 40. Qxd4 {[%emt 0:00:30]} cxd4 {[%emt 0:00:30]} 41. Re7 {[%emt 0:00:30]} Nc5 {[%emt 0:00:30]} 42. f4 {[%emt 0:00:30]} Rf8 {[%emt 0:00:30]} 43. g3 {[%emt 0:00:30]} Bf5 {[%emt 0:00:30]} 44. Nxf5 {[%emt 0:00:30]} Rxf5 45. Re5 {[%emt 0:00:30]} Rf8 {[%emt 0:01:00]} 46. h4 {[%emt 0:00:30]} Nxd3 {[%emt 0:00:30]} 47. Re6 {[%emt 0:00:30]} Rd8 {[%emt 0:00:30]} 48. h5 {[%emt 0:00:30]} Nb2 {[%emt 0:00:30]} 49. Re2 {[%emt 0:00:30]} Nxc4 {[%emt 0:00:30]} 50. g4 {[%emt 0:00:30]} d3 {[%emt 0:00:30]} 51. Re1 {[%emt 0:00:30]} Ne3 {[%emt 0:00:30]} 52. g5 {[%emt 0:00:30]} d2 {[%emt 0:00:30]} 53. Ra1 {[%emt 0:00:30]} c5 {[%emt 0:00:30]} 54. h6 {[%emt 0:00:30]} c4 {[%emt 0:00:30]} 55. h7 {[%emt 0:00:30]} c3 {[%emt 0:00:30]} 56. g6 {[%emt 0:00:30]} Nf5 {[%emt 0:00:30]} 57. Rd1 {[%emt 0:00:30]} c2 {[%emt 0:00:30]} 58. Rxd2 {[%emt 0:00:30]} Rxd2+ {[%emt 0:00:30]} 59. Kh3 {[%emt 0:00:30]} c1=Q {[%emt 0:00:30]} 60. Kg4 {[%emt 0:00:30]} Qc8 {[%emt 0:00:30]} 0-1

[Event "16th Baltic Pearl Open"]
[Site "Lazy"]
[Date "2020.07.05"]
[Round "8.4"]
[White "Luch, Michal"]
[Black "Mielczarski, Miroslaw"]
[Result "1/2-1/2"]
[ECO "D12"]
[WhiteElo "2409"]
[BlackElo "2156"]
[Annotator "ChessBase"]
[PlyCount "69"]
[EventDate "2020.06.28"]
[EventType "swiss"]
[EventCountry "POL"]
[SourceTitle "playchess.com"]
[Source "ChessBase"]
[SourceQuality "1"]
[TimeControl "5400+30"]

1. d4 {[%emt 1:30:30]} d5 {[%emt 1:30:30]} 2. c4 {[%emt 0:00:30]} c6 {[%emt 0:00:30]} 3. Nf3 {[%emt 0:00:30]} Nf6 {[%emt 0:00:30]} 4. e3 {[%emt 0:00:30]} Bf5 {[%emt 0:00:30]} 5. Nc3 {[%emt 0:00:30]} e6 {[%emt 0:00:30]} 6. Nh4 {[%emt 0:00:30]} Bg6 {[%emt 0:00:30]} 7. Nxg6 {[%emt 0:00:30]} hxg6 {[%emt 0:00:30]} 8. Bd2 {[%emt 0:00:30]} Bd6 {[%emt 0:00:30]} 9. Qb3 {[%emt 0:00:30]} b6 {[%emt 0:00:30]} 10. g3 {[%emt 0:00:30]} Nbd7 {[%emt 0:00:30]} 11. Bg2 {[%emt 0:00:30]} Rc8 {[%emt 0:00:30]} 12. cxd5 {[%emt 0:00:30]} exd5 {[%emt 0:00:30]} 13. Rc1 {[%emt 0:00:30]} O-O {[%emt 0:00:30]} 14. O-O {[%emt 0:00:30]} Re8 {[%emt 0:00:30]} 15. Rc2 {[%emt 0:00:30]} Nf8 {[%emt 0:00:30]} 16. Rfc1 {[%emt 0:00:30]} Qd7 {[%emt 0:00:30]} 17. Ne2 {[%emt 0:00:30]} g5 {[%emt 0:00:30]} 18. Bb4 {[%emt 0:00:30]} Rc7 {[%emt 0:00:30]} 19. Bxd6 {[%emt 0:00:30]} Qxd6 {[%emt 0:00:30]} 20. Rd1 {[%emt 0:00:30]} g6 {[%emt 0:00:30]} 21. Nc1 {[%emt 0:00:30]} Kg7 {[%emt 0:00:30]} 22. Nd3 {[%emt 0:00:30]} Ne6 {[%emt 0:00:30]} 23. Qb4 {[%emt 0:00:30]} c5 {[%emt 0:00:30]} 24. Qa3 {[%emt 0:00:30]} Rd8 {[%emt 0:00:30]} 25. dxc5 {[%emt 0:00:30]} bxc5 {[%emt 0:00:30]} 26. Nc1 {[%emt 0:00:30]} d4 {[%emt 0:00:30]} 27. Nb3 {[%emt 0:00:30]} Qb6 {[%emt 0:00:30]} 28. exd4 {[%emt 0:00:30]} c4 {[%emt 0:00:30]} 29. Nc1 {[%emt 0:00:30]} Nxd4 {[%emt 0:00:30]} 30. Rcd2 {[%emt 0:00:30]} Rcd7 {[%emt 0:00:30]} 31. Qc3 {[%emt 0:00:30]} Nb5 {[%emt 0:00:30]} 32. Qc2 {[%emt 0:00:30]} Nd4 {[%emt 0:00:30]} 33. Qc3 {[%emt 0:00:30]} Nb5 {[%emt 0:00:30]} 34. Qc2 {[%emt 0:00:30]} Nd4 {[%emt 0:00:30]} 35. Bf1 {[%emt 0:00:30]} 1/2-1/2

[Event "16th Baltic Pearl Open"]
[Site "Lazy"]
[Date "2020.07.06"]
[Round "9.1"]
[White "Szpar, Milosz"]
[Black "Kosakowski, Jakub"]
[Result "1/2-1/2"]
[ECO "B97"]
[WhiteElo "2343"]
[BlackElo "2416"]
[Annotator "ChessBase"]
[PlyCount "74"]
[EventDate "2020.06.28"]
[EventType "swiss"]
[EventCountry "POL"]
[SourceTitle "playchess.com"]
[Source "ChessBase"]
[SourceQuality "1"]
[TimeControl "5400+30"]

1. e4 {[%emt 0:00:00]} c5 {[%emt 0:00:00]} 2. Nf3 {[%emt 0:00:00]} d6 {[%emt 0:00:06]} 3. d4 {[%emt 0:00:18]} cxd4 {[%emt 0:00:14]} 4. Nxd4 {[%emt 0:00:47]} Nf6 {[%emt 0:00:08]} 5. Nc3 {[%emt 0:00:05]} a6 {[%emt 0:00:06]} 6. Bg5 {[%emt 0:00:13]} e6 {[%emt 0:00:25]} 7. f4 {[%emt 0:00:32]} h6 {[%emt 0:00:09]} 8. Bh4 {[%emt 0:00:09]} Qb6 {[%emt 0:00:09]} 9. Qd2 {[%emt 0:00:25]} Qxb2 {[%emt 0:00:10]} 10. Rb1 {[%emt 0:00:26]} Qa3 {[%emt 0:00:06]} 11. e5 {[%emt 0:00:05]} dxe5 {[%emt 0:00:07]} 12. fxe5 {[%emt 0:00:04]} Nfd7 {[%emt 0:00:05]} 13. Ne4 {[%emt 0:00:29]} Qxa2 {[%emt 0:00:07]} 14. Rd1 {[%emt 0:00:05]} Qd5 {[%emt 0:00:08]} 15. Qe3 {[%emt 0:00:15]} Qxe5 {[%emt 0:00:14]} 16. Be2 {[%emt 0:00:18]} Bc5 {[%emt 0:00:33]} 17. Bg3 {[%emt 0:00:04]} Qd5 {[%emt 0:00:08]} 18. c4 {[%emt 0:00:37]} Bxd4 {[%emt 0:00:08]} 19. Rxd4 {[%emt 0:00:22]} Qa5+ {[%emt 0:00:07]} 20. Rd2 {[%emt 0:00:13]} O-O {[%emt 0:00:11]} 21. Bd6 {[%emt 0:00:53]} f5 {[%emt 0:00:07]} 22. Bxf8 {[%emt 0:01:05]} Nxf8 {[%emt 0:00:07]} 23. Nd6 {[%emt 0:00:24]} Nbd7 {[%emt 0:00:08]} 24. g4 {[%emt 0:02:44]} fxg4 {[%emt 0:00:13]} 25. O-O {[%emt 0:02:26]} Qc5 {[%emt 0:03:40]} 26. Qxc5 {[%emt 0:06:58]} Nxc5 {[%emt 0:00:28]} 27. Bxg4 {[%emt 0:01:32]} Bd7 {[%emt 0:18:13]} 28. Bf3 {[%emt 0:10:27]} Bc6 {[%emt 0:12:10]} 29. Bxc6 {[%emt 0:07:51]} bxc6 {[%emt 0:00:31]} 30. Rb2 {[%emt 0:04:02]} Nfd7 {[%emt 0:14:31]} 31. Nb7 {[%emt 0:07:32]} a5 {[%emt 0:08:06]} 32. Nxc5 {[%emt 0:02:54]} Nxc5 {[%emt 0:00:06]} 33. Rb6 {[%emt 0:01:22]} Rc8 {[%emt 0:06:55]} 34. Kg2 {[%emt 0:07:11]} a4 {[%emt 0:01:01]} 35. Rf3 {[%emt 0:05:24]} Ra8 {[%emt 0:01:29]} 36. Ra3 {[%emt 0:00:59]} Rc8 {[%emt 0:00:08]} 37. Rf3 {[%emt 0:00:25]} Ra8 {[%emt 0:37:16]} 1/2-1/2